[Event "1st FIDE Olympiad DIS 2023"]
[Site "Belgrade"]
[Date "2023.01.30"]
[Round "1.1"]
[White "Tazbir, Marcin"]
[Black "Kevorkov, Artur"]
[Result "1-0"]
[ECO "C00"]
[WhiteElo "2507"]
[BlackElo "2158"]
[Annotator "TA"]
[PlyCount "83"]
[EventDate "2023.01.30"]
[EventType "team-tourn"]
[EventCountry "SRB"]
[SourceTitle "playchess.com"]
[Source "ChessBase"]
[SourceQuality "1"]
[WhiteTeam "Poland"]
[BlackTeam "Germany"]
[WhiteTeamCountry "POL"]
[BlackTeamCountry "GER"]
[TimeControl "40/5400+30:1800+30"]

{[%evp 9,83,-4,0,-9,26,8,22,16,35,41,41,10,63,57,64,66,68,47,56,38,33,30,27,35,61,55,69,61,94,42,40,38,68,48,72,66,59,56,45,38,156,62,77,77,166,-60,6,6,8,10,0,-18,-16,-74,0,0,59,45,339,350,380,396,397,347,385,385,375,391,420,380,418,409,554,564,695,665]} 1. e4 {[%emt 0:00:01]} e6 {[%emt 0:00:07]} 2. d3 {[%emt 0:00:11]} d5 {[%emt 0:00:28]} 3. Qe2 {[%emt 0:00:10]} Be7 {[%emt 0:01:10]} 4. Nf3 {[%emt 0:00:06]} c5 {[%emt 0:01:00]} 5. g3 {[%emt 0:00:09]} Nc6 {[%emt 0:00:17]} 6. Bg2 {[%emt 0:00:07] C00: French: Unusual White 2nd moves.} dxe4 {[%emt 0:07:58]} 7. dxe4 {[%emt 0:00:15]} e5 $1 {[%emt 0:00:01]} 8. O-O {[%emt 0:00:58] The position is equal.} Bg4 {[%emt 0:06:04]} 9. c3 {[%emt 0:00:19]} Nf6 {[%emt 0:03:25]} 10. h3 {[%emt 0:01:26]} Bh5 {[%emt 0:02:26]} (10... Be6 $11) 11. Na3 {[%emt 0:01:58]} O-O {[%emt 0:03:52]} 12. Nc4 {[%emt 0:03:19]} Qc7 {[%emt 0:00:42]} 13. Ne3 {[%emt 0:01:12]} (13. g4 $5 {[%cal Rg4h5]} Bg6 14. Nh4 $14) 13... Rad8 {[%emt 0:09:19]} (13... Nxe4 $2 14. Nd5 Nxc3 15. bxc3 $18) 14. Nf5 {[%emt 0:03:45] [#]} Rfe8 $146 {[%emt 0:05:31]} ({Predecessor:} 14... Rd7 15. Bg5 Rfd8 16. Bxf6 Bxf6 17. Ne3 Bxf3 18. Qxf3 Ne7 19. Rfd1 Bg5 20. Nd5 Nxd5 21. exd5 {½-½ Stepovaia,T (2414)-Fomina,T (2266) Keres Memorial op 2000 (6)}) 15. g4 {[%emt 0:02:53]} Bg6 {[%emt 0:00:03]} 16. N3h4 {[%emt 0:00:11]} Bf8 {[%emt 0:06:46]} 17. Bg5 {[%emt 0:12:31]} (17. Nxg6 {simplifies} hxg6 18. Ne3 a6 19. Bd2) 17... Re6 {[%emt 0:02:53]} 18. Rad1 {[%emt 0:00:54]} a6 {[%emt 0:02:12]} 19. Nxg6 {[%emt 0:01:32]} (19. Ne3 $16) 19... hxg6 $14 {[%emt 0:00:22]} 20. Ne3 {[%emt 0:00:15]} Ne7 {[%emt 0:06:44]} 21. Nd5 {[%emt 0:02:40]} Qc8 {[%emt 0:11:45]} 22. Bh4 {[%emt 0:02:43] White has more active pieces. The black rooks are badly placed.} b5 {[%emt 0:07:25]} 23. f4 {[%emt 0:05:43]} exf4 {[%emt 0:06:56]} 24. Nxf4 {[%emt 0:00:25] Rxd8 is the strong threat.} Re5 {[%emt 0:04:42]} ({Black should play} 24... Rxd1 $1 $14 25. Rxd1 Re5) 25. Nd3 {[%emt 0:01:41]} (25. Rxd8 $16 Qxd8 26. Nd3 {[%mdl 64] Deflection}) 25... Re6 {[%emt 0:00:02]} 26. e5 $1 {[%emt 0:00:12]} c4 {[%emt 0:01:23] [#]} (26... Ned5 $16) 27. Qf3 $2 {[%emt 0:01:57]} Rxd3 {[%emt 0:00:36]} (27... Nc6 $1 $15 28. exf6 Rxd3 {[%mdl 64] Remove Defender} 29. Rxd3 Ne5 30. fxg7 Nxf3+ 31. Rdxf3 Bxg7 32. Rxf7 Qc5+ 33. Kh1 Qd6) 28. Rxd3 $11 {[%emt 0:00:06]} cxd3 {[%emt 0:00:12]} 29. exf6 {[%emt 0:00:06]} gxf6 {[%emt 0:00:13] Strongly threatening ...d2.} 30. Bxf6 {[%emt 0:01:06] A strong pair of Bishops.} (30. Qxd3 $5 {[%cal Rf1f6]} f5 31. Bf2 $14) 30... Qd7 {[%emt 0:03:29][%cal Oe7f5]} 31. Rd1 {[%emt 0:14:20] [#]} (31. Bd4 $11 Nc6 32. Qxd3) 31... d2 {[%emt 0:03:33]} (31... Nf5 $1 $17 {[%cal Rf5e3] Threatens to win with ...Ne3.} 32. gxf5 Rxf6 33. Qxd3 Qa7+ 34. Kh1 Rxf5) 32. Qf2 $40 {[%emt 0:03:20][%mdl 128] White mounts an attack.} Qd3 {[%emt 0:02:52]} ({Black should try} 32... Bh6 $11 33. g5 Bf8) 33. Rxd2 {[%emt 0:02:59]} (33. Bg5 {is more complex.} Re1+ 34. Rxe1 dxe1=R+ 35. Qxe1 Nd5 36. Qe5) 33... Qe3 {[%emt 0:01:05][%mdl 8192] Loses the game.} (33... Qb1+ $14 34. Kh2 Nf5) 34. Qxe3 $18 {[%emt 0:00:47]} Rxe3 {[%emt 0:00:01]} 35. Rd8 {[%emt 0:00:20]} Re6 {[%emt 0:00:13]} 36. g5 {[%emt 0:01:04]} Nf5 {[%emt 0:00:12]} 37. b4 {[%emt 0:02:32]} Rd6 {[%emt 0:01:18]} 38. Rxd6 {[%emt 0:01:24]} Nxd6 {[%emt 0:00:03]} 39. Kf2 {[%emt 0:00:30]} Nc4 {[%emt 0:00:48]} 40. Bd5 {[%emt 0:00:28] Hoping for Bxc4.} Nb6 {[%emt 0:01:41]} 41. Bb7 {[%emt 0:30:25]} Na4 {[%emt 0:02:09]} 42. Ke3 {[%emt 0:00:00] Weighted Error Value: White=0.20 (precise) /Black=0.43} 1-0

[Event "1st FIDE Olympiad DIS 2023"]
[Site "Belgrade"]
[Date "2023.01.30"]
[Round "1.1"]
[White "Sarkar, Justin"]
[Black "Banda Aaron"]
[Result "1-0"]
[ECO "B12"]
[WhiteElo "2345"]
[BlackElo "1901"]
[Annotator "TA"]
[PlyCount "73"]
[EventDate "2023.01.30"]
[EventType "team-tourn"]
[EventCountry "SRB"]
[SourceTitle "playchess.com"]
[Source "ChessBase"]
[SourceQuality "1"]
[WhiteTeam "FIDE"]
[BlackTeam "Zambia"]
[WhiteTeamCountry "USA"]
[BlackTeamCountry "ZAM"]
[TimeControl "40/5400+30:1800+30"]

{[%evp 9,73,60,64,74,79,56,79,51,105,63,66,68,88,57,68,64,93,83,118,120,112,118,138,135,143,117,135,127,197,197,243,226,319,215,217,196,204,201,376,381,452,391,379,380,328,338,854,823,823,824,907,939,1032,1009,1224,1218,1209,1206,1207,1168,7069,6056,29990,29990,29992,711]} 1. e4 {[%emt 0:00:07]} c6 {[%emt 0:00:14]} 2. d4 {[%emt 0:00:11]} d5 {[%emt 0:00:29]} 3. e5 {[%emt 0:00:23]} e6 {[%emt 0:01:19]} 4. c3 {[%emt 0:03:38]} Qb6 {[%emt 0:01:21]} 5. Nf3 {[%emt 0:02:42]} h6 {[%emt 0:02:26]} 6. Bd3 {[%emt 0:00:53] B12: Caro-Kann: Advance Variation.} Ne7 {[%emt 0:02:54] [#]} 7. h4 $146 {[%emt 0:00:52]} ({Predecessor:} 7. a4 a5 8. O-O Nd7 9. Na3 Qc7 10. Nh4 g5 11. Nf3 b6 12. b4 Bb7 13. h3 {1-0 Matiushinsky,V (2029)-Kondrashova,N (1544) Cheliabinsk We Remember 2009}) 7... Na6 {[%emt 0:03:10]} 8. O-O {[%emt 0:13:13] White is better.} Bd7 {[%emt 0:03:13]} ({Black should try} 8... c5 $14) 9. a4 {[%emt 0:02:27][%cal Ba2a4,Ba4a5][%mdl 32]} c5 {[%emt 0:02:46]} 10. a5 {[%emt 0:02:14]} Qc6 {[%emt 0:01:02]} 11. dxc5 {[%emt 0:00:17] White is much more active. The black rooks are badly placed.} Nxc5 {[%emt 0:03:13]} 12. Bc2 $1 {[%emt 0:01:00]} Qc7 {[%emt 0:06:11] White leaves nothing to chance now.} 13. Re1 {[%emt 0:00:20]} Nc6 {[%emt 0:03:22]} 14. Nbd2 {[%emt 0:02:43]} Bc8 {[%emt 0:02:40]} 15. Qe2 {[%emt 0:06:26]} (15. b4 Nd7 $14) 15... a6 {[%emt 0:02:24]} 16. b4 {[%emt 0:16:15]} Nd7 {[%emt 0:00:39][%cal Oc6b4]} 17. Nb3 {[%emt 0:00:07]} Be7 {[%emt 0:02:39][%cal Og7g5]} 18. h5 {[%emt 0:00:33]} Na7 {[%emt 0:07:13] [#]} (18... b6 $16) 19. Nfd4 $1 $18 {[%emt 0:11:58]} Nb8 {[%emt 0:16:04]} (19... Qxc3 20. Bd2 Qc7 21. Qg4) (19... Nc6 {was called for.}) 20. Qg4 {[%emt 0:02:51]} Bf8 {[%emt 0:04:06]} (20... Kf8 {keeps fighting.} 21. f4 Nbc6) 21. Bd2 {[%emt 0:02:23] And now f4 would win.} Nbc6 {[%emt 0:01:58]} 22. Rac1 {[%emt 0:05:14]} Nxd4 {[%emt 0:01:10]} 23. cxd4 {[%emt 0:00:42]} (23. Qxd4 $6 Bd7 $16) (23. Nxd4 Bd7 24. Bd3 Nc6) 23... Nc6 $2 {[%emt 0:07:43]} (23... Bd7 {was worth a try.} 24. Bd3 (24. Bg6 Qd8 $16) 24... Qd8) 24. Nc5 {[%emt 0:01:15]} Bd7 {[%emt 0:02:07]} 25. Ba4 {[%emt 0:04:31]} Bxc5 {[%emt 0:05:07]} 26. Qxg7 {[%emt 0:05:23]} (26. bxc5 O-O-O 27. Bxc6 (27. Qxg7 Nxd4 28. c6 bxc6 $16) 27... Bxc6 $16) (26. Rxc5 Rh7 27. Bc2 Rh8 $18) (26. dxc5 Kf8 $16) 26... O-O-O {[%emt 0:00:50]} 27. Rxc5 {[%emt 0:00:19] aiming for b5.} ({Weaker is} 27. bxc5 Nxd4 28. c6 bxc6 $16) 27... Rdf8 $2 {[%emt 0:03:46] Black is weak on the dark squares} (27... Rdg8 28. Qxf7 Rf8) 28. b5 {[%emt 0:01:47]} axb5 {[%emt 0:01:13]} 29. Bxb5 {[%emt 0:00:04]} Kb8 {[%emt 0:00:45]} 30. Rb1 {[%emt 0:02:59]} Ka7 {[%emt 0:01:06]} 31. a6 {[%emt 0:00:41]} b6 {[%emt 0:01:09] [#]} 32. Rxc6 $1 {[%emt 0:00:55][%mdl 512]} Bxc6 {[%emt 0:02:26]} 33. Rc1 {[%emt 0:00:08][%cal Bb1c1,Bc1c6,Bc6c7][%mdl 32]} (33. Bxh6 $2 {is the wrong capture.} Bxb5 34. Rc1 (34. Rxb5 $2 {perishes.} Rfg8 $19) 34... Qe7 $19) 33... Qe7 {[%emt 0:00:45]} 34. Rxc6 {[%emt 0:01:13][%cal Od2b4] White wants to mate with Bb4!} Rhg8 {[%emt 0:03:34]} 35. Qf6 {[%emt 0:01:10]} Qa3 {[%emt 0:01:37]} 36. Rc7+ {[%emt 0:01:16]} Ka8 {[%emt 0:02:04]} 37. Bc6+ {[%emt 0:00:24] A cool game by Sarkar.   Weighted Error Value: White=0.12 (very precise) /Black=0.51} (37. Bc1 $142 Qa4 38. Bxa4 Rxg2+ {[%mdl 64] Decoy} 39. Kxg2 Rg8+ 40. Kh2 b5 41. Qe7 Kb8 42. Bxb5 f5 43. a7+ Ka8 44. Bc6#) 1-0

[Event "1st FIDE Olympiad DIS 2023"]
[Site "Belgrade"]
[Date "2023.01.30"]
[Round "1.2"]
[White "Koessler, Wolfgang"]
[Black "Molenda, Marcin"]
[Result "0-1"]
[ECO "B52"]
[WhiteElo "1746"]
[BlackElo "2381"]
[Annotator "TA"]
[PlyCount "44"]
[EventDate "2023.01.30"]
[EventType "team-tourn"]
[EventCountry "SRB"]
[SourceTitle "playchess.com"]
[Source "ChessBase"]
[SourceQuality "1"]
[WhiteTeam "Germany"]
[BlackTeam "Poland"]
[WhiteTeamCountry "GER"]
[BlackTeamCountry "POL"]
[TimeControl "40/5400+30:1800+30"]

{[%evp 9,44,12,7,6,10,15,25,27,35,4,1,-22,14,0,8,-54,-17,-107,-128,-139,-152,-179,-166,-234,-168,-391,-360,-482,-479,-479,-475,-982,-906,-1097,-991,-29991,-220]} 1. e4 {[%emt 0:00:08]} c5 {[%emt 0:00:07]} 2. Nf3 {[%emt 0:00:07]} d6 {[%emt 0:00:11]} 3. Bb5+ {[%emt 0:00:56]} Bd7 {[%emt 0:00:26]} 4. Bxd7+ {[%emt 0:00:54]} Qxd7 {[%emt 0:00:08]} 5. d4 {[%emt 0:00:23]} cxd4 {[%emt 0:00:24]} 6. Nxd4 {[%emt 0:00:06] B52: Sicilian: Moscow Variation with 3...Bd7.} Nf6 {[%emt 0:00:34]} 7. Nc3 {[%emt 0:00:19]} e6 {[%emt 0:02:55]} 8. Be3 {[%emt 0:02:12] White has an edge.} Be7 {[%emt 0:00:23]} 9. f3 {[%emt 0:01:28]} O-O {[%emt 0:00:26]} 10. Qd2 {[%emt 0:00:56]} a6 {[%emt 0:00:59][%cal Ba7a6,Ba6a5,Ba5b4][%mdl 32] [#]} 11. O-O-O $146 {[%emt 0:00:33]} ({Predecessor:} 11. g4 Rd8 12. O-O-O Nc6 13. h4 Ne5 14. Qe2 Rac8 15. h5 Nc4 16. g5 Ne8 17. f4 {1-0 Sanchez Salazar,K (2017)-Ayerra Aizpun,F San Juan op 2008 (4)}) 11... b5 {[%emt 0:00:50]} 12. a3 {[%emt 0:04:17]} ({White should play} 12. Kb1 $11) 12... Nc6 {[%emt 0:04:33]} 13. Nxc6 {[%emt 0:05:56]} (13. g4 $1 $11) 13... Qxc6 $17 {[%emt 0:00:18]} 14. Rhe1 {[%emt 0:03:10] [#]} a5 $1 {[%emt 0:01:37]} 15. Qd4 {[%emt 0:14:14] [#]} b4 $1 {[%emt 0:05:10][%mdl 512]} 16. axb4 {[%emt 0:02:03]} axb4 {[%emt 0:00:12]} 17. Nb1 $2 {[%emt 0:06:42]} (17. Qxb4 Rfb8 18. Qd4) 17... Rfc8 {[%emt 0:01:30][%csl Gc8][%cal Rc6c2]} 18. Re2 {[%emt 0:02:46]} d5 {[%emt 0:02:36][%cal Rd5e4]} 19. e5 {[%emt 0:03:27]} Nd7 {[%emt 0:00:23]} 20. Qf4 {[%emt 0:08:18]} (20. Kd2 $142 Ra2 21. Ke1) 20... Ra1 $19 {[%emt 0:02:53] aiming for ...Qa6.} 21. Bd4 {[%emt 0:03:37]} Qa6 {[%emt 0:00:37]} 22. Kd2 {[%emt 0:05:09]} Rc7 $2 {[%emt 0:00:45] Weighted Error Value: White=1.19/Black=0.08 (flawless)} (22... Rxc2+ {mates} 23. Kxc2 Qxe2+ 24. Nd2 b3+ 25. Kc3 Rxd1 26. Kxb3 Rc1 27. Bc5 Nxc5+ 28. Kb4 Qa6 29. Qxf7+ Kxf7 30. h3 Qa4#) 0-1

[Event "1st FIDE Olympiad DIS 2023"]
[Site "Belgrade"]
[Date "2023.01.30"]
[Round "1.2"]
[White "Nkhupi Robert"]
[Black "Obodchuk, Andrei"]
[Result "0-1"]
[ECO "A34"]
[WhiteElo "1738"]
[BlackElo "2317"]
[Annotator "TA"]
[PlyCount "77"]
[EventDate "2023.01.30"]
[EventType "team-tourn"]
[EventCountry "SRB"]
[SourceTitle "playchess.com"]
[Source "ChessBase"]
[SourceQuality "1"]
[WhiteTeam "Zambia"]
[BlackTeam "FIDE"]
[WhiteTeamCountry "ZAM"]
[TimeControl "40/5400+30:1800+30"]

{[%evp 9,77,0,0,-17,-17,-16,-14,-14,-14,-12,10,6,21,-20,25,-8,21,-18,-8,-15,-10,-14,5,25,24,-211,-218,-386,-392,-394,-392,-470,-469,-463,-466,-502,-467,-794,-792,-771,-672,-718,-718,-710,-710,-694,-695,-687,-649,-697,-695,-689,-670,-1077,-1396,-937,-867,-5389,-5306,-1814,-873,-1750,-1666,-1122,-1092,-1795,-877,-29975,-29973,-6608]} 1. e4 {[%emt 0:00:13]} c5 {[%emt 0:00:18]} 2. c4 {[%emt 0:00:58]} Nc6 {[%emt 0:00:34]} 3. Nf3 {[%emt 0:00:45]} Nf6 {[%emt 0:00:42]} 4. Nc3 {[%emt 0:01:36]} d6 {[%emt 0:03:40]} 5. d3 {[%emt 0:03:33]} g6 {[%emt 0:00:27]} 6. Bg5 {[%emt 0:02:54] A34: Symmetrical English: 2 Nc3, lines with ...d5.} Bg7 {[%emt 0:00:15]} 7. Be2 {[%emt 0:00:20]} h6 {[%emt 0:00:17]} 8. Bd2 {[%emt 0:01:56] [#] The position is equal.} O-O $146 {[%emt 0:01:58]} ({Predecessor:} 8... Nd7 9. Rb1 a6 10. Nd5 e6 11. Nc3 Rb8 12. a3 Nf6 13. b4 b6 14. b5 axb5 15. cxb5 {0-1 Sengbusch,G-Schuett,D Pinneberg-ch op 1997 (2)}) 9. h3 {[%emt 0:01:49]} Nd4 {[%emt 0:03:16]} 10. O-O {[%emt 0:02:12]} a6 {[%emt 0:00:59]} 11. a4 {[%emt 0:00:24]} Rb8 {[%emt 0:00:37]} 12. a5 {[%emt 0:00:36]} b5 {[%emt 0:01:06]} 13. Nxd4 {[%emt 0:09:36]} cxd4 {[%emt 0:00:09]} 14. Nd5 {[%emt 0:00:22]} bxc4 {[%emt 0:05:30] White should prevent ...Nxd5.} 15. Nxf6+ {[%emt 0:03:39]} exf6 {[%emt 0:00:18][%cal Be7f6,Bf6f5,Bf5e4][%mdl 32]} 16. dxc4 {[%emt 0:00:36]} f5 {[%emt 0:00:35]} 17. Rb1 $2 {[%emt 0:10:16] [#] Loses the game.} (17. exf5 $11 {and White has nothing to worry.} Bxf5 18. b4) 17... fxe4 $19 {[%emt 0:00:27]} 18. b4 $2 {[%emt 0:00:21]} (18. Qc1) 18... d3 {[%emt 0:00:20]} 19. Re1 {[%emt 0:01:16]} dxe2 {[%emt 0:00:05]} 20. Rxe2 {[%emt 0:03:41]} Be6 {[%emt 0:00:00]} 21. Qc1 {[%emt 0:01:15]} Kh7 {[%emt 0:01:18]} 22. b5 {[%emt 0:00:41]} Rc8 {[%emt 0:01:35]} 23. Rb4 {[%emt 0:05:43]} (23. Rxe4 $142 Bf5 24. Rf4) 23... axb5 {[%emt 0:00:17]} 24. Rxe4 {[%emt 0:01:15]} Bxc4 {[%emt 0:00:14]} 25. Qa3 {[%emt 0:06:39]} d5 {[%emt 0:00:23]} 26. Re1 {[%emt 0:01:17]} Re8 {[%emt 0:00:07]} 27. Rbb1 {[%emt 0:00:56]} Qd7 {[%emt 0:02:18]} 28. Bb4 {[%emt 0:00:48]} Bd4 {[%emt 0:02:01] aiming for ...Re2.} 29. Rbd1 {[%emt 0:03:11]} Rxe1+ {[%emt 0:00:59]} 30. Rxe1 {[%emt 0:00:08]} Re8 {[%emt 0:00:34][%cal Od7f5]} 31. a6 {[%emt 0:07:48]} Rxe1+ {[%emt 0:00:51]} 32. Bxe1 {[%emt 0:00:11]} Qe6 {[%emt 0:01:17]} 33. Qa5 {[%emt 0:02:55] [#]} b4 $1 {[%emt 0:00:43]} 34. Qxb4 {[%emt 0:00:51]} Qxa6 {[%emt 0:00:08] Strongly threatening ...Qf6.} 35. Bc3 {[%emt 0:01:37]} Bxc3 {[%emt 0:00:33]} 36. Qxc3 {[%emt 0:00:06]} Qe6 {[%emt 0:00:23] And now ...Qe2 would win.} 37. Qd4 {[%emt 0:00:43]} Qe4 {[%emt 0:00:11]} 38. Qc5 {[%emt 0:03:08]} Qd3 {[%emt 0:00:52]} 39. Qe3 {[%emt 0:02:01] Weighted Error Value: White=0.48/Black=0.11 (very precise)} 0-1

[Event "1st FIDE Olympiad DIS 2023"]
[Site "Belgrade"]
[Date "2023.01.30"]
[Round "1.3"]
[White "Dukaczewski, Piotr"]
[Black "Dorner, Matthias"]
[Result "0-1"]
[ECO "A12"]
[WhiteElo "2131"]
[BlackElo "2180"]
[Annotator "TA"]
[PlyCount "96"]
[EventDate "2023.01.30"]
[EventType "team-tourn"]
[EventCountry "SRB"]
[SourceTitle "playchess.com"]
[Source "ChessBase"]
[SourceQuality "1"]
[WhiteTeam "Poland"]
[BlackTeam "Germany"]
[WhiteTeamCountry "POL"]
[BlackTeamCountry "GER"]
[TimeControl "40/5400+30:1800+30"]

{[%evp 12,96,33,0,23,21,48,38,45,34,44,35,55,41,31,33,42,39,43,42,51,47,46,45,59,57,83,34,67,42,83,37,30,0,19,20,19,19,10,16,80,43,103,-83,-92,-109,-56,-189,-128,-280,-279,-245,-117,-173,-177,-222,-239,-229,-213,-432,-405,-611,-605,-954,-981,-948,-968,-950,-941,-916,-893,-829,-642,-660,-585,-1023,-948,-2355,-2345,-2037,-1945,-29992,-29993,-29998,-29976,-29994,-29989]} 1. c4 {[%emt 0:00:09]} c6 {[%emt 0:00:09]} 2. Nf3 {[%emt 0:00:40]} d5 {[%emt 0:00:12]} 3. e3 {[%emt 0:00:35]} Nf6 {[%emt 0:00:21]} 4. b3 {[%emt 0:00:37]} Bf5 {[%emt 0:00:30]} 5. Bb2 {[%emt 0:00:26]} e6 {[%emt 0:00:17]} 6. Be2 {[%emt 0:00:51]} Nbd7 {[%emt 0:00:32]} 7. O-O {[%emt 0:00:49]} Be7 {[%emt 0:00:27] A12: English Opening: 1...c6 with b3 by White.} 8. Nh4 {[%emt 0:00:51]} Bg6 {[%emt 0:00:23] [#]} 9. g3 $146 {[%emt 0:00:50]} ({Predecessor:} 9. Nc3 Qc7 10. h3 a6 11. d4 Ne4 12. Nxg6 Nxc3 13. Bxc3 hxg6 14. Rc1 Nf6 15. Bf3 {1-0 Wehner,R (1989)-Krieger,M (1833) GER-ch Net Amateur Gr-A Vor2 blitz 2020 (9)}) 9... O-O {[%emt 0:02:05] White is slightly better.} 10. Nxg6 {[%emt 0:00:35]} hxg6 {[%emt 0:00:14]} 11. d4 {[%emt 0:01:04]} Ne4 {[%emt 0:03:04]} 12. Nd2 {[%emt 0:04:58]} Nxd2 {[%emt 0:01:23]} 13. Qxd2 {[%emt 0:00:00]} Nf6 {[%emt 0:01:48]} 14. Bf3 {[%emt 0:02:11]} a5 {[%emt 0:02:34]} 15. Qc2 {[%emt 0:05:32]} a4 {[%emt 0:03:20]} 16. bxa4 {[%emt 0:04:50]} Qa5 {[%emt 0:00:24]} 17. Bd1 {[%emt 0:02:58]} Ne4 {[%emt 0:06:40]} 18. c5 {[%emt 0:05:19]} Bg5 {[%emt 0:03:50]} 19. Qd3 {[%emt 0:05:08]} ({White should try} 19. Rb1 $16) 19... Rfe8 {[%emt 0:06:29][%cal Oe6e5]} 20. Bb3 {[%emt 0:04:47]} Bf6 {[%emt 0:04:28]} 21. Rac1 {[%emt 0:05:00]} (21. Qc2 $16) 21... e5 $14 {[%emt 0:01:47]} 22. Rfd1 {[%emt 0:10:17]} exd4 {[%emt 0:01:24]} 23. exd4 {[%emt 0:00:34]} Re7 {[%emt 0:00:57]} 24. f3 {[%emt 0:02:13]} Ng5 {[%emt 0:02:34] Hoping for ...Rae8.} 25. Bc3 {[%emt 0:01:08]} Qa6 {[%emt 0:02:51]} (25... Qc7 $11 {remains equal.}) 26. h4 {[%emt 0:06:42]} Ne6 {[%emt 0:01:07]} (26... Qxd3 $14 27. Rxd3 Ne6) 27. Qd2 $2 {[%emt 0:05:18]} (27. Qxa6 $16 {is forced if you want to stay better.} Rxa6 28. Rd3) 27... Rae8 $17 {[%emt 0:01:18]} 28. Rf1 {[%emt 0:04:28]} Qa7 {[%emt 0:03:48] Black is more active.} ({Black should play} 28... g5 $17 29. h5 g4) 29. a5 {[%emt 0:19:40] [#]} (29. Rf2 $15) 29... Nxc5 (29... Qb8 $1 $19 {[%mdl 512]} 30. f4 Nc7) 30. Rf2 $2 {[%emt 0:08:11] [#]} (30. dxc5 $17 Re2 31. Rce1 Qxc5+ 32. Kh1 Bxc3 33. Rxe2 Bxd2 34. Rxe8+ Kh7 35. Kg2) 30... Ne6 $1 $19 {[%emt 0:02:54]} 31. Rd1 {[%emt 0:00:32]} Nc7 {[%emt 0:02:09]} (31... Qb8 $19 {is more deadly.} 32. Rg2 Bxh4) 32. Kg2 {[%emt 0:00:44] [#]} (32. Ba4 $17) 32... Nb5 $1 {[%emt 0:01:59][%cal Bc7b5,Bb5d6,Bd6c4,Bc4e3,Be3d1][%mdl 32]} 33. Bb2 {[%emt 0:00:40]} Re6 {[%emt 0:01:17]} 34. Bc2 {[%emt 0:00:59]} Nd6 {[%emt 0:03:32] White must now prevent ...Nc4.} 35. Bc3 $2 {[%emt 0:00:52]} (35. Bd3 {was worth a try.}) 35... Nc4 {[%emt 0:01:22]} 36. Qf4 {[%emt 0:01:06]} (36. Qc1 $142 Ne3+ 37. Kh2) 36... Ne3+ {[%emt 0:00:41]} 37. Kg1 {[%emt 0:00:59]} Nxd1 {[%emt 0:00:23]} 38. Bxd1 {[%emt 0:00:12]} Re3 {[%emt 0:03:01][%mdl 64] Deflection} 39. Bd2 {[%emt 0:02:49]} Bxd4 {[%emt 0:02:18]} 40. Kg2 {[%emt 0:00:13]} R3e7 {[%emt 0:01:08]} 41. Rf1 {[%emt 0:00:36]} Be3 {[%emt 0:30:23]} 42. Bxe3 {[%emt 0:00:46]} Qxe3 {[%emt 0:00:10]} 43. Qb4 {[%emt 0:00:56]} c5 {[%emt 0:02:07]} 44. Qb5 {[%emt 0:01:20]} Qd2+ {[%emt 0:00:44]} 45. Kh3 {[%emt 0:00:30]} Re1 {[%emt 0:00:20] ( -> ...R8e3)} 46. Ba4 {[%emt 0:00:59]} R8e2 {[%emt 0:00:35] Black mates.} 47. Rxe1 {[%emt 0:00:23]} Rxe1 {[%emt 0:01:09]} 48. f4 {[%emt 0:02:47]} f5 {[%emt 0:00:00] Weighted Error Value: White=0.91/Black=0.22 (precise)} 0-1